bitfinex-derivatives/quotes_BTCF0:USTF0_20241029
["timestamp","ask_amount","ask_price","bid_price","bid_amount"]
[1730167266814,0.09149552,70340.0,70339.0,0.21322969]
[1730167267010,0.09149552,70340.0,70338.0,0.21396022]
[1730167267206,0.02747952,70339.0,70338.0,0.064018]
[1730167267614,0.02747952,70339.0,70338.0,0.27710359]
[1730167268508,0.02747952,70339.0,70338.0,0.21308559]
[1730167268715,0.09149652,70339.0,70338.0,0.21308559]
[1730167268920,0.12633499,70339.0,70338.0,0.21308559]
[1730167269721,0.06231799,70339.0,70338.0,0.27710359]
[1730167271724,0.12633499,70339.0,70338.0,0.21308559]
[1730167271916,0.17000262,70339.0,70338.0,0.05647829]
[1730167272111,0.064018,70338.0,70335.0,0.27795773]
[1730167272315,0.06231799,70337.0,70334.0,0.3608]
[1730167272828,0.06231799,70337.0,70335.0,0.21261598]
[1730167272829,0.06402,70336.0,70335.0,0.21261598]
[1730167273018,0.06402,70336.0,70328.0,0.3608]
[1730167273019,0.064022,70334.0,70328.0,0.3608]
[1730167273320,0.205157,70335.0,70329.0,0.21281276]
[1730167273321,0.12635112,70333.0,70329.0,0.21281276]
[1730167273516,0.064025,70331.0,70329.0,0.21281276]
[1730167273727,0.12635312,70330.0,70329.0,0.21281276]
[1730167273927,0.064025,70330.0,70329.0,0.21281276]
[1730167274125,0.0617,70340.0,70329.0,0.21281276]
[1730167274331,0.0604,70345.0,70340.0,0.064016]
[1730167274532,0.0604,70345.0,70339.0,0.205157]
[1730167274823,0.0604,70345.0,70340.0,0.27863949]
[1730167275024,0.0604,70345.0,70340.0,0.63943949]
[1730167275223,0.066,70352.0,70340.0,0.424816]
[1730167275528,0.066,70352.0,70340.0,0.63785224]
[1730167275730,0.0652,70352.0,70340.0,0.63785224]
[1730167275917,0.063,70353.0,70340.0,0.63785224]
[1730167275918,0.063996,70363.0,70355.0,0.064002]
[1730167276124,0.063,70362.0,70355.0,0.064002]
[1730167276324,0.063,70362.0,70355.0,0.27830358]
[1730167276518,0.1253,70366.0,70355.0,0.27830358]
[1730167277018,0.063994,70364.0,70362.0,0.3608]
[1730167277328,0.063991,70368.0,70362.0,0.3608]
[1730167277517,0.063,70369.0,70362.0,0.3608]
[1730167277717,0.063993,70365.0,70362.0,0.3608]
[1730167277923,0.063994,70365.0,70362.0,0.3608]
[1730167278613,0.063,70369.0,70362.0,0.3608]
[1730167279325,0.063994,70364.0,70362.0,0.3608]
[1730167279725,0.205157,70365.0,70354.0,0.3608]
[1730167279915,0.064,70358.0,70354.0,0.3608]
[1730167280118,0.205157,70360.0,70357.0,0.21424207]
[1730167280321,0.064,70358.0,70355.0,0.21424207]
[1730167280630,0.064,70358.0,70354.0,0.424803]
[1730167281031,0.02747381,70357.0,70355.0,0.21409561]
[1730167281226,0.0623034,70357.0,70355.0,0.21409561]
[1730167281426,0.064001,70357.0,70355.0,0.21409561]
[1730167281625,0.205157,70364.0,70355.0,0.27809761]
[1730167281828,0.064002,70356.0,70355.0,0.21409561]
[1730167282719,0.064008,70349.0,70347.0,0.36293234]
[1730167282935,0.064004,70354.0,70348.0,0.205157]
[1730167283119,0.02747478,70353.0,70348.0,0.41945809]
[1730167283320,0.02747478,70352.0,70351.0,0.064006]
[1730167283731,0.02747478,70352.0,70351.0,0.27805693]
[1730167284728,0.265157,70360.0,70351.0,0.27805693]
[1730167284932,0.09147089,70359.0,70354.0,0.3608]
[1730167285129,0.02747189,70358.0,70354.0,0.424803]
[1730167285444,0.06230081,70358.0,70355.0,0.21178836]
[1730167285740,0.21808,70369.0,70355.0,0.21178836]
[1730167285741,0.21808,70369.0,70361.0,0.063997]
[1730167285923,0.21808,70369.0,70365.0,0.063993]
[1730167285924,0.02747024,70368.0,70365.0,0.063993]
[1730167286122,0.02747024,70367.0,70365.0,0.063993]
[1730167286325,0.12699,70369.0,70365.0,0.063993]
[1730167286623,0.12699,70369.0,70364.0,0.3608]
[1730167286624,0.02746814,70368.0,70366.0,0.063992]
[1730167286833,0.12699,70369.0,70366.0,0.063992]
[1730167286834,0.02746814,70367.0,70366.0,0.063992]
[1730167287132,0.02746965,70367.0,70366.0,0.063992]
[1730167287434,0.05493923,70367.0,70366.0,0.063992]
[1730167288844,0.05493923,70367.0,70364.0,0.3608]
[1730167289021,0.10594308,70366.0,70356.0,0.36164]
[1730167289228,0.205157,70364.0,70356.0,0.36164]
[1730167289530,0.205157,70364.0,70361.0,0.2145761]
[1730167289531,0.063996,70362.0,70361.0,0.2145761]
[1730167289719,0.064,70358.0,70357.0,0.2145761]
[1730167289923,0.064002,70356.0,70351.0,0.064006]
[1730167290119,0.1059592,70355.0,70352.0,0.2145761]
[1730167290334,0.1059592,70354.0,70352.0,0.064005]
[1730167290532,0.10595844,70353.0,70352.0,0.064005]
[1730167290923,0.10595844,70353.0,70352.0,0.2767181]
[1730167291237,0.15697256,70353.0,70347.0,0.06614134]
[1730167291426,0.064009,70348.0,70347.0,0.00213234]
[1730167291625,0.22098386,70348.0,70347.0,0.00213234]
[1730167291932,0.22098386,70348.0,70347.0,0.21417265]
[1730167292135,0.15697486,70348.0,70347.0,0.21417265]
[1730167292527,0.15697486,70348.0,70347.0,0.27818265]
[1730167293936,0.34109905,70348.0,70347.0,0.27818265]
[1730167294134,0.15697486,70348.0,70347.0,0.27818265]
[1730167295130,0.34112021,70348.0,70347.0,0.27818265]
[1730167295631,0.34112021,70348.0,70347.0,0.21036085]
[1730167296027,0.15582531,70349.0,70347.0,0.14635085]
[1730167296232,0.05101412,70357.0,70352.0,0.064005]
[1730167296940,0.05101412,70357.0,70345.0,0.23037821]
[1730167297135,0.05101412,70357.0,70352.0,0.064004]
[1730167297329,0.05101412,70357.0,70353.0,0.064004]
[1730167297631,0.3608,70355.0,70353.0,0.064004]
[1730167299040,0.3608,70355.0,70354.0,0.064003]
[1730167300644,0.3608,70355.0,70354.0,0.20065516]
[1730167300829,0.3608,70355.0,70354.0,0.064003]
[1730167302132,0.3608,70355.0,70346.0,0.13665216]
[1730167302437,0.3608,70355.0,70352.0,0.064005]
[1730167303443,0.3608,70355.0,70353.0,0.064003]
[1730167303627,0.3608,70355.0,70349.0,0.13665216]
[1730167303828,0.3608,70355.0,70354.0,0.064003]
[1730167304140,0.38827527,70355.0,70354.0,0.064003]
[1730167307336,0.42310646,70355.0,70354.0,0.064003]
[1730167307535,0.38827527,70355.0,70354.0,0.064003]
[1730167307938,0.4231062,70355.0,70354.0,0.064003]
[1730167308534,0.4871082,70355.0,70354.0,0.064003]
[1730167308742,0.4871082,70355.0,70345.0,0.13665216]
[1730167308939,0.0623062,70354.0,70345.0,0.13665216]
[1730167309140,0.0623062,70354.0,70351.0,0.064006]
[1730167309346,0.06230805,70353.0,70351.0,0.064006]
[1730167309649,0.06230805,70352.0,70351.0,0.064006]
[1730167309839,0.12590805,70352.0,70351.0,0.064006]
[1730167311042,0.16956752,70352.0,70351.0,0.064006]
[1730167311634,0.10596752,70352.0,70351.0,0.064006]
[1730167311840,0.15698326,70352.0,70351.0,0.62132288]
[1730167312036,0.00213242,70367.0,70366.0,0.063992]
[1730167312342,0.00213242,70367.0,70366.0,0.27690681]
[1730167313052,0.18420203,70377.0,70376.0,0.063983]
[1730167313248,0.3608,70383.0,70382.0,0.063978]
[1730167313551,0.3608,70383.0,70382.0,0.20063016]
[1730167313736,0.3608,70383.0,70382.0,0.13665216]
[1730167314045,0.18441212,70384.0,70383.0,0.063977]
[1730167314253,0.54505612,70390.0,70389.0,0.063972]
[1730167314453,0.54505612,70390.0,70389.0,0.20062416]
[1730167314647,0.54505612,70390.0,70389.0,0.41486878]
[1730167314844,0.3608,70390.0,70389.0,0.41486878]
[1730167315052,0.41178874,70390.0,70389.0,0.41486878]
[1730167315637,0.05098874,70390.0,70389.0,0.41486878]
[1730167315837,0.05098874,70396.0,70394.0,0.063967]
[1730167316043,0.05098874,70396.0,70395.0,0.20061816]
[1730167316339,0.36152,70397.0,70396.0,0.063965]
[1730167316340,0.00072,70397.0,70396.0,0.063965]
[1730167316536,0.00213126,70405.0,70399.0,0.063962]
[1730167316741,0.00213126,70405.0,70396.0,0.21432617]
[1730167317049,0.04362758,70404.0,70402.0,0.13665216]
[1730167317238,0.19908775,70403.0,70402.0,0.20061116]
[1730167317546,0.19908775,70403.0,70402.0,0.41229029]
[1730167317547,0.04362758,70403.0,70402.0,0.41229029]
[1730167318342,0.15532773,70403.0,70402.0,0.41229029]
[1730167318557,0.04362758,70403.0,70402.0,0.41229029]
[1730167319051,0.3608,70407.0,70402.0,0.34833129]
[1730167319261,0.3608,70407.0,70403.0,0.063959]
[1730167320351,0.3608,70407.0,70400.0,0.063961]
[1730167320654,0.49745216,70401.0,70400.0,0.21226694]
[1730167320845,0.59621999,70401.0,70400.0,0.21226694]
[1730167321045,0.57589269,70401.0,70392.0,0.02552046]
[1730167321239,0.424768,70393.0,70387.0,0.063973]
[1730167321448,0.063976,70384.0,70383.0,0.21376065]
[1730167321755,0.063984,70375.0,70374.0,0.00213126]
[1730167321952,0.58890348,70375.0,70374.0,0.00213126]
[1730167322158,0.58890348,70375.0,70374.0,0.21589191]
[1730167322452,0.45225132,70375.0,70374.0,0.21589191]
[1730167322658,0.65718454,70375.0,70374.0,0.21589191]
[1730167322953,0.65718454,70375.0,70306.0,0.640472]
[1730167322954,1.09795387,70375.0,70355.0,0.064002]
[1730167323158,0.20493322,70358.0,70349.0,0.064008]
[1730167323350,0.3608,70359.0,70356.0,0.21206251]
[1730167323351,0.09146832,70357.0,70356.0,0.21206251]
[1730167323656,0.12429848,70357.0,70350.0,0.21458771]
[1730167323848,0.02746732,70356.0,70353.0,0.064004]
[1730167324750,0.02746732,70356.0,70348.0,0.3608]
[1730167324966,0.064007,70350.0,70343.0,0.064013]
[1730167325154,0.3608,70352.0,70349.0,0.21232528]
[1730167325445,0.3608,70352.0,70348.0,0.21232528]
[1730167325446,0.02747615,70351.0,70348.0,0.21232528]
[1730167325657,0.3608,70352.0,70347.0,0.20493322]
[1730167325956,0.02747557,70351.0,70349.0,0.21241403]
[1730167326154,0.10596671,70350.0,70348.0,0.21241403]
[1730167326457,0.10596671,70349.0,70348.0,0.064008]
[1730167326644,0.10596671,70349.0,70348.0,0.27773654]
[1730167326848,0.10596671,70349.0,70348.0,0.21372854]
[1730167327247,0.12950674,70349.0,70346.0,0.21372854]
[1730167327558,0.12950674,70348.0,70345.0,0.3608]
[1730167327755,0.12950674,70347.0,70346.0,0.21384182]
[1730167328663,0.07849115,70347.0,70346.0,0.1201425]
[1730167329154,0.07849115,70347.0,70346.0,0.1841535]
[1730167330465,0.07849335,70347.0,70346.0,0.1841535]
[1730167330762,0.06849335,70347.0,70346.0,0.1841535]
[1730167331665,0.06849335,70347.0,70346.0,0.38908672]
[1730167331860,0.06849335,70347.0,70346.0,0.1841535]
[1730167333658,0.06849335,70347.0,70346.0,0.38908672]
[1730167334064,0.11950894,70347.0,70346.0,0.20493322]
[1730167334260,0.063995,70363.0,70354.0,0.064003]
[1730167334261,0.15944,70362.0,70354.0,0.064003]
[1730167334467,0.15944,70362.0,70346.0,0.41954759]
[1730167334660,0.15944,70362.0,70354.0,0.064003]
[1730167334857,0.00213251,70365.0,70354.0,0.064003]
[1730167335054,0.063996,70362.0,70354.0,0.064003]
[1730167335250,0.063996,70362.0,70357.0,0.064]
[1730167335469,0.3608,70358.0,70347.0,0.3608]
[1730167335655,0.3608,70358.0,70348.0,0.21350448]
[1730167335962,0.3608,70358.0,70354.0,0.064003]
[1730167336168,0.3608,70358.0,70355.0,0.064002]
[1730167336360,0.3608,70358.0,70356.0,0.064001]
[1730167336556,0.3608,70358.0,70355.0,0.21350448]
[1730167336757,0.3608,70358.0,70357.0,0.27749475]
[1730167337064,0.063979,70381.0,70374.0,0.063985]
[1730167337365,0.0628,70376.0,70375.0,0.27794183]
[1730167337559,0.3608,70387.0,70375.0,0.21395783]
[1730167337862,0.40720331,70391.0,70383.0,0.3608]
[1730167338365,0.34323331,70391.0,70389.0,0.424772]
[1730167340453,0.34323331,70391.0,70390.0,0.063971]
[1730167341255,0.37804469,70391.0,70390.0,0.063971]
[1730167341456,0.4216783,70391.0,70390.0,0.063971]
[1730167341665,0.37804469,70391.0,70390.0,0.063971]
[1730167342666,0.03481138,70391.0,70390.0,0.063971]
[1730167343553,0.03480983,70391.0,70390.0,0.063971]
[1730167344864,0.17139165,70391.0,70389.0,0.3608]
[1730167345363,0.17139165,70391.0,70390.0,0.21247437]
[1730167345553,0.13658182,70391.0,70390.0,0.21247437]
[1730167346162,0.49738182,70391.0,70390.0,0.11147437]
[1730167346467,0.26887481,70391.0,70390.0,0.00817437]
[1730167346767,0.07844822,70391.0,70390.0,0.07214537]
[1730167347558,0.04363545,70391.0,70390.0,0.07214537]
[1730167348456,0.130762,70400.0,70390.0,0.00817437]
[1730167348663,0.130762,70400.0,70396.0,0.3608]
[1730167349262,0.0668,70400.0,70396.0,0.3608]
[1730167349959,0.0668,70400.0,70396.0,0.38613212]
[1730167350766,0.0668,70400.0,70396.0,0.45009712]
[1730167351074,0.0668,70400.0,70396.0,0.38613212]
[1730167351275,0.063958,70405.0,70399.0,0.063962]
[1730167351864,0.2070363,70406.0,70399.0,0.063962]
[1730167352171,0.06396,70402.0,70399.0,0.063962]
[1730167354175,0.2709923,70406.0,70399.0,0.063962]
[1730167354380,0.2709923,70406.0,70396.0,0.38613212]
[1730167354667,0.2709923,70406.0,70401.0,0.06396]
[1730167355266,0.2709923,70406.0,70402.0,0.06396]
[1730167355974,0.063959,70403.0,70402.0,0.06396]
[1730167356270,0.063962,70400.0,70398.0,0.063963]
[1730167356469,0.063964,70397.0,70396.0,0.3608]
[1730167356665,0.56570481,70399.0,70389.0,0.08938188]
[1730167356878,0.20490481,70390.0,70389.0,0.063971]
[1730167357177,0.20490481,70394.0,70391.0,0.06397]
[1730167357571,0.56570481,70399.0,70392.0,0.063968]
[1730167358168,0.063967,70395.0,70390.0,0.20490481]
[1730167358378,0.36152,70399.0,70398.0,0.063963]
[1730167358579,0.3608,70399.0,70398.0,0.063963]
[1730167358775,0.063964,70398.0,70393.0,0.063967]
[1730167358971,0.20490481,70397.0,70391.0,0.02532895]
[1730167359289,0.20490481,70397.0,70391.0,0.21404185]
[1730167359290,0.063969,70393.0,70391.0,0.21404185]
[1730167359486,0.063969,70393.0,70389.0,0.063971]
[1730167359684,0.063969,70393.0,70392.0,0.21378467]
[1730167359870,0.063969,70393.0,70389.0,0.063971]
[1730167359871,0.063969,70393.0,70391.0,0.21378467]
[1730167360066,0.063969,70393.0,70391.0,0.063969]
[1730167360275,0.063969,70393.0,70392.0,0.21378467]
[1730167360684,0.00076,70397.0,70396.0,0.063965]
[1730167360973,0.00076,70397.0,70390.0,0.20490481]
[1730167360974,0.0677,70398.0,70397.0,0.063964]
[1730167363482,0.0677,70398.0,70397.0,0.27723328]
[1730167363674,0.07843888,70398.0,70397.0,0.61397714]
[1730167364467,0.17612909,70398.0,70397.0,0.61397714]
[1730167364676,0.07843888,70398.0,70397.0,0.61397714]
[1730167366579,0.07843888,70398.0,70397.0,0.75053323]
[1730167366973,0.19077898,70398.0,70397.0,0.75053323]
[1730167367384,0.07843888,70398.0,70397.0,0.32437323]
[1730167367582,0.07843888,70398.0,70397.0,0.18781714]
[1730167368281,0.07843888,70398.0,70397.0,0.12385314]
[1730167368786,0.12941376,70398.0,70390.0,0.02547386]
[1730167369083,0.3608,70400.0,70394.0,0.21173395]
[1730167369084,0.063965,70396.0,70394.0,0.21173395]
[1730167369379,0.19711376,70395.0,70393.0,0.21173395]
[1730167369574,0.55418076,70394.0,70393.0,0.21173395]
[1730167369776,0.55418076,70394.0,70382.0,0.02597832]
[1730167369777,0.063977,70383.0,70382.0,0.02597832]
[1730167369976,0.063977,70383.0,70378.0,0.00213134]
[1730167369977,0.063981,70379.0,70378.0,0.00213134]
[1730167370182,0.063993,70366.0,70361.0,0.13655609]
[1730167370384,0.12941376,70365.0,70362.0,0.063996]
[1730167370585,0.12941376,70364.0,70362.0,0.2781882]
[1730167370774,0.0677,70365.0,70362.0,0.2781882]
[1730167370775,0.12941376,70363.0,70362.0,0.2781882]
[1730167371287,0.07847366,70363.0,70362.0,0.7045482]
[1730167371784,0.18449767,70371.0,70370.0,0.063989]
[1730167371974,0.0677,70381.0,70378.0,0.063982]
[1730167372413,0.0677,70381.0,70375.0,0.56576848]
[1730167372708,0.0677,70381.0,70379.0,0.063981]
[1730167373297,0.0677,70381.0,70376.0,0.063983]
[1730167373493,0.0677,70381.0,70379.0,0.06398]
[1730167373903,0.424774,70386.0,70380.0,0.20496848]
[1730167374205,0.063972,70389.0,70383.0,0.063976]
[1730167374417,0.063972,70389.0,70384.0,0.063976]
[1730167374602,0.063972,70389.0,70386.0,0.063974]
[1730167375206,0.063972,70389.0,70387.0,0.063973]
[1730167375515,0.063975,70385.0,70382.0,0.21329673]
[1730167375714,0.063977,70383.0,70382.0,0.21329673]
[1730167375901,0.063977,70383.0,70381.0,0.063979]
[1730167376303,0.051677,70383.0,70382.0,0.27727473]
[1730167376699,0.051677,70383.0,70376.0,0.23033449]
[1730167376700,0.051677,70383.0,70380.0,0.063979]
[1730167376997,0.051677,70383.0,70381.0,0.21176407]
[1730167377890,0.3608,70384.0,70381.0,0.21176407]
[1730167378205,0.3608,70393.0,70388.0,0.063972]
[1730167378206,0.063968,70393.0,70388.0,0.063972]
[1730167378391,0.424768,70393.0,70388.0,0.063972]
[1730167378691,0.03481414,70392.0,70386.0,0.20496848]
[1730167378886,0.34323331,70396.0,70383.0,0.3608]
[1730167378887,0.34323331,70396.0,70391.0,0.20496848]
[1730167379089,0.00072,70393.0,70392.0,0.063969]
[1730167379289,0.00072,70393.0,70392.0,0.27582502]
[1730167379791,0.34323331,70396.0,70395.0,0.063966]
[1730167380991,0.34323331,70396.0,70389.0,0.36152]
[1730167380992,0.063967,70394.0,70390.0,0.06397]
[1730167381195,0.063969,70392.0,70389.0,0.3608]
[1730167381389,0.063969,70392.0,70390.0,0.21333907]
[1730167381593,0.06397,70391.0,70390.0,0.21333907]
[1730167381788,0.09878362,70391.0,70390.0,0.21333907]
[1730167382198,0.063972,70389.0,70387.0,0.21362649]
[1730167382498,0.03481432,70388.0,70387.0,0.063973]
[1730167382797,0.03481432,70388.0,70387.0,0.21400038]
[1730167383094,0.34323331,70396.0,70395.0,0.063966]
[1730167383294,0.37804445,70396.0,70395.0,0.063966]
[1730167383489,0.3780444,70396.0,70395.0,0.063966]
[1730167384293,0.3780444,70396.0,70395.0,0.490126]
[1730167384499,0.3780444,70396.0,70395.0,0.70363147]
[1730167384500,0.34323331,70396.0,70395.0,0.70363147]
[1730167385199,0.34323331,70396.0,70395.0,0.72968019]
[1730167385590,0.0704,70411.0,70395.0,1.17772761]
[1730167385795,0.0704,70411.0,70410.0,0.26892048]
[1730167386299,0.0704,70411.0,70410.0,0.48334242]
[1730167386695,0.0704,70411.0,70410.0,0.27837394]
[1730167387018,0.0704,70411.0,70406.0,0.20496848]
[1730167387019,0.0704,70411.0,70405.0,0.3608]
[1730167387196,0.0704,70411.0,70395.0,0.00285042]
[1730167387198,0.063965,70397.0,70395.0,0.00285042]
[1730167387389,0.132265,70396.0,70395.0,0.00213042]
[1730167387793,0.132265,70396.0,70395.0,0.21445901]
[1730167388499,0.3608,70399.0,70397.0,0.063964]
[1730167388804,0.063961,70401.0,70397.0,0.26893248]
[1730167389603,0.424757,70406.0,70399.0,0.063962]
[1730167389797,0.3608,70406.0,70399.0,0.063962]
[1730167389997,0.063957,70405.0,70399.0,0.063962]
[1730167390210,0.063957,70405.0,70400.0,0.063961]
[1730167390391,0.3608,70406.0,70397.0,0.20496848]
[1730167390597,0.3608,70400.0,70395.0,0.00213042]
[1730167390811,0.063965,70396.0,70395.0,0.00213042]
[1730167390996,0.063969,70392.0,70391.0,0.3608]
[1730167391193,0.063975,70386.0,70384.0,0.063975]
[1730167391499,0.3608,70385.0,70384.0,0.063975]
[1730167391801,0.063975,70386.0,70385.0,0.27690955]
[1730167392001,0.3608,70387.0,70386.0,0.063974]
[1730167392295,0.0671,70391.0,70390.0,0.063971]
[1730167392495,0.3608,70394.0,70393.0,0.063968]
[1730167393010,0.3608,70394.0,70393.0,0.490128]
[1730167393691,0.43924427,70394.0,70393.0,0.490128]
[1730167394103,0.07844427,70394.0,70393.0,0.063968]
[1730167394400,0.15597981,70394.0,70393.0,0.063968]
[1730167394602,0.23442408,70394.0,70393.0,0.063968]
[1730167394800,0.03481102,70394.0,70393.0,0.063968]
[1730167395104,0.03481102,70394.0,70390.0,0.063971]
[1730167395408,0.03481102,70393.0,70392.0,0.063969]
[1730167395596,0.03481102,70397.0,70390.0,0.20496848]
[1730167395796,0.03481102,70396.0,70393.0,0.212487]
[1730167395998,0.3608,70398.0,70394.0,0.063967]
[1730167395999,0.03481213,70395.0,70394.0,0.063967]
[1730167396303,0.12942963,70397.0,70396.0,0.063965]
[1730167396504,0.07844353,70397.0,70396.0,0.063965]
[1730167396806,0.07844353,70397.0,70396.0,0.70317566]
[1730167397001,0.07844353,70397.0,70396.0,0.27701566]
[1730167397204,0.0784383,70397.0,70396.0,0.27701566]
[1730167398807,0.03480837,70397.0,70396.0,0.27701566]
[1730167399906,0.03480837,70397.0,70396.0,0.70317566]
[1730167400700,0.07843801,70397.0,70396.0,0.27701566]
[1730167401410,0.23430478,70397.0,70396.0,0.21305066]
[1730167401615,0.21983077,70397.0,70396.0,0.21305066]
[1730167401803,0.063964,70397.0,70394.0,0.21324202]
[1730167401998,0.063964,70397.0,70393.0,0.063968]
[1730167401999,0.3608,70400.0,70395.0,0.063966]
[1730167402202,0.063963,70398.0,70393.0,0.21324202]
[1730167402410,0.063963,70398.0,70396.0,0.21324202]
[1730167402712,0.063964,70397.0,70394.0,0.27675091]
[1730167403008,0.063964,70397.0,70394.0,0.063967]
[1730167403510,0.3608,70400.0,70379.0,0.04174692]
[1730167403511,0.20496848,70395.0,70379.0,0.04174692]
[1730167403813,0.063977,70383.0,70379.0,0.06398]
[1730167404000,0.063977,70383.0,70374.0,0.2467154]
[1730167404001,0.063972,70389.0,70375.0,0.063984]
[1730167404201,0.063977,70383.0,70380.0,0.21187152]
[1730167404402,0.063977,70383.0,70378.0,0.063981]
[1730167404602,0.063977,70383.0,70379.0,0.21187152]
[1730167404914,0.3608,70390.0,70379.0,0.20496848]
[1730167404915,0.063973,70388.0,70379.0,0.20496848]
[1730167405214,0.063973,70388.0,70387.0,0.20496848]
[1730167405708,0.063973,70388.0,70383.0,0.26894448]
[1730167406111,0.063973,70388.0,70384.0,0.21196082]
[1730167406509,0.063973,70388.0,70385.0,0.1366]
[1730167406712,0.3608,70390.0,70385.0,0.1366]
[1730167406899,0.063974,70386.0,70385.0,0.1366]
[1730167407303,0.063974,70386.0,70385.0,0.35077528]
[1730167408013,0.1366,70388.0,70380.0,0.06398]
[1730167408204,0.063985,70374.0,70373.0,0.1366]
[1730167408509,0.424785,70374.0,70373.0,0.21411826]
[1730167408708,0.063985,70374.0,70373.0,0.21411826]
[1730167408914,0.063985,70374.0,70368.0,0.1366]
[1730167408915,0.063991,70368.0,70366.0,0.063992]
[1730167409306,0.3608,70367.0,70366.0,0.063992]
[1730167409802,0.3608,70367.0,70366.0,0.27829588]
[1730167410003,0.3608,70367.0,70366.0,0.21430388]
[1730167410211,0.424792,70367.0,70366.0,0.21430388]
[1730167410407,0.424792,70367.0,70365.0,0.21430388]
[1730167410613,0.063992,70366.0,70362.0,0.21430388]
[1730167410916,0.063995,70364.0,70360.0,0.00213167]
[1730167411117,0.3608,70361.0,70360.0,0.00213167]
[1730167411418,0.3608,70361.0,70360.0,0.21531401]
[1730167412221,0.3608,70367.0,70365.0,0.063993]
[1730167412511,0.3608,70367.0,70366.0,0.48093017]
[1730167412914,0.3608,70367.0,70366.0,0.2689664]
[1730167413120,0.3608,70367.0,70366.0,0.48174473]
[1730167415328,0.3608,70367.0,70366.0,0.90806473]
[1730167415510,0.3608,70376.0,70375.0,0.063984]
[1730167415715,0.063973,70388.0,70382.0,0.063977]
[1730167416022,0.55885161,70389.0,70385.0,0.2689494]
[1730167416320,0.55813161,70389.0,70385.0,0.2689494]
[1730167416515,0.26130361,70389.0,70385.0,0.2689494]
[1730167416823,0.19733161,70389.0,70388.0,0.063972]
[1730167417214,0.19733161,70389.0,70388.0,0.27788482]
[1730167418216,0.19733161,70389.0,70388.0,0.47008455]
[1730167418411,0.19733161,70389.0,70388.0,0.81242151]
[1730167420425,0.1952,70389.0,70388.0,0.81242151]
[1730167421514,0.1952,70389.0,70388.0,1.11242151]
[1730167421515,0.1734437,70389.0,70388.0,1.11242151]
[1730167422025,0.0959357,70389.0,70388.0,1.35146415]
[1730167422228,0.08256141,70389.0,70388.0,1.35590898]
[1730167422525,0.0727,70408.0,70404.0,0.063958]
[1730167422711,0.063951,70412.0,70407.0,0.063955]
[1730167423121,0.0461099,70415.0,70411.0,0.06984282]
[1730167423326,0.0461099,70415.0,70409.0,0.06984282]
[1730167423622,0.063949,70414.0,70412.0,0.21239756]
[1730167423823,0.063949,70414.0,70411.0,0.06984282]
[1730167424126,0.0461099,70415.0,70412.0,0.21203528]
[1730167424419,0.0461099,70415.0,70411.0,0.3458291]
[1730167424731,0.496567,70417.0,70415.0,0.063948]
[1730167424732,0.36152,70417.0,70415.0,0.063948]
[1730167424920,0.3608,70417.0,70415.0,0.063948]
[1730167425221,0.3608,70417.0,70416.0,0.2133456]
[1730167425521,0.38825319,70417.0,70416.0,0.2133456]
[1730167425726,0.38825319,70417.0,70416.0,0.2772926]
[1730167426024,0.3608,70417.0,70416.0,0.063947]
[1730167426322,0.3608,70417.0,70416.0,0.27750168]
[1730167426513,0.3608,70417.0,70416.0,0.27945423]
[1730167427925,0.38825269,70417.0,70416.0,0.27945423]
[1730167428127,0.3608,70417.0,70416.0,0.27945423]
[1730167428624,0.00213086,70418.0,70416.0,0.21550723]
[1730167428831,0.00213086,70418.0,70417.0,0.063946]
[1730167429328,0.434,70425.0,70417.0,0.063946]
[1730167429329,0.3608,70438.0,70426.0,0.063938]
[1730167429651,0.3608,70447.0,70435.0,0.2689044]
[1730167429927,0.424719,70447.0,70435.0,0.2689044]
[1730167430129,0.3608,70447.0,70435.0,0.90779682]
[1730167430519,0.01060284,70455.0,70453.0,0.063913]
[1730167430717,0.3608,70475.0,70474.0,0.063894]
[1730167430917,0.3608,70475.0,70474.0,0.2688684]
[1730167430918,0.02743619,70475.0,70474.0,0.2688684]
[1730167431120,0.3608,70487.0,70484.0,0.063885]
[1730167431324,0.3608,70525.0,70498.0,0.063872]
[1730167431634,0.063859,70514.0,70499.0,0.72355255]
[1730167431826,0.5657744,70517.0,70499.0,1.00144005]
[1730167432031,0.063859,70513.0,70499.0,1.00144005]
[1730167432324,0.49936,70525.0,70499.0,1.87381289]
[1730167432325,0.063853,70520.0,70499.0,1.87381289]
[1730167432524,0.2049744,70528.0,70499.0,1.87381289]
[1730167432831,5.42464859,70500.0,70499.0,1.57381289]
[1730167433034,5.33420275,70500.0,70490.0,0.3608]
[1730167433323,0.14018769,70495.0,70487.0,0.2049744]
[1730167433525,0.07832243,70494.0,70492.0,0.21418583]
[1730167433729,0.14018769,70497.0,70488.0,0.21418583]
[1730167433730,0.39555695,70493.0,70488.0,0.21418583]
[1730167433919,0.063884,70485.0,70474.0,0.3608]
[1730167434235,0.063884,70485.0,70466.0,0.3608]
[1730167434236,0.063893,70476.0,70466.0,0.3608]
[1730167434433,0.1400928,70467.0,70466.0,0.3608]
[1730167434726,0.07832243,70467.0,70466.0,0.57412184]
[1730167434931,0.03475695,70467.0,70466.0,0.57412184]
[1730167435228,0.04356548,70467.0,70466.0,0.99984184]
[1730167435424,0.13999928,70467.0,70466.0,0.99984184]
[1730167435725,0.07832243,70467.0,70466.0,0.99984184]
[1730167436120,0.12925485,70467.0,70466.0,0.99984184]
[1730167436322,0.15392363,70467.0,70466.0,0.99984184]
[1730167436523,0.23224606,70467.0,70466.0,0.99984184]
[1730167436826,0.07832243,70467.0,70466.0,0.99984184]
[1730167437220,0.2182529,70467.0,70466.0,0.99984184]
[1730167437420,0.07832243,70467.0,70466.0,0.57412184]
[1730167437820,0.03475695,70467.0,70466.0,0.57412184]
[1730167438331,0.07834418,70467.0,70466.0,0.10132184]
[1730167438628,0.063902,70466.0,70454.0,0.3608]
[1730167438832,0.20383106,70460.0,70454.0,0.3608]
[1730167439028,0.13992406,70456.0,70455.0,0.21282825]
[1730167439233,0.07834418,70456.0,70455.0,0.21282825]
[1730167439530,0.063914,70453.0,70451.0,0.36292872]
[1730167439934,0.063914,70453.0,70452.0,0.21312673]
[1730167440228,0.063914,70453.0,70452.0,0.41810113]
[1730167441726,0.077914,70453.0,70452.0,0.77990113]
[1730167441927,0.091914,70453.0,70452.0,0.42010113]